bitfinex/quotes_ETHUSD_20240827
["timestamp","ask_amount","ask_price","bid_price","bid_amount"]
[1724717695455,2.341,2690.4,2690.1,3.76299591]
[1724717695764,2.341,2690.4,2690.1,3.76296591]
[1724717695910,2.341,2690.4,2690.1,4.8834538]
[1724717697425,7.28,2690.6,2690.1,4.9577707]
[1724717697627,7.28,2690.6,2690.2,3.71717]
[1724717698027,7.28,2690.6,2690.3,0.04569439]
[1724717698431,7.28,2690.6,2690.2,3.71717]
[1724717698632,7.28,2690.6,2690.4,0.04569439]
[1724717698965,7.28,2690.6,2690.5,0.04569439]
[1724717699119,7.28,2690.6,2690.2,4.95254778]
[1724717699318,7.28,2690.6,2690.5,0.04569439]
[1724717699518,7.28,2690.6,2690.2,4.95254778]
[1724717699731,7.28,2690.6,2690.5,0.04569439]
[1724717699959,7.28,2690.6,2690.3,0.61473726]
[1724717700159,7.28,2690.6,2690.5,0.04569439]
[1724717700362,7.28,2690.6,2690.3,0.61473726]
[1724717700677,6.05614,2690.8,2690.5,0.04569439]
[1724717700968,7.21411845,2690.8,2690.4,0.04555816]
[1724717701175,7.21411845,2690.8,2690.6,0.04548646]
[1724717701330,7.21411845,2690.8,2690.2,4.23537778]
[1724717701516,7.21411845,2690.8,2690.7,0.04548646]
[1724717701870,6.05614,2690.8,2690.2,4.23537778]
[1724717702068,2.3397,2690.6,2690.0,3.71745]
[1724717702367,2.3397,2690.6,2690.0,4.460944]
[1724717702864,2.3397,2690.6,2690.1,3.71732]
[1724717703062,2.3397,2690.6,2690.1,7.4345]
[1724717703365,2.3397,2690.6,2690.1,3.71724]
[1724717703568,2.3397,2690.6,2690.2,0.4460734]
[1724717704081,2.3397,2690.6,2690.2,4.1632534]
[1724717707219,3.71637,2690.8,2690.4,3.71679]
[1724717707220,2.3397,2690.8,2690.4,3.71679]
[1724717707781,2.3397,2690.8,2690.2,4.1631234]
[1724717708062,2.3397,2690.7,2690.2,4.1631234]
[1724717708261,6.05621,2690.7,2690.0,8.178244]
[1724717708430,2.3397,2690.6,2690.0,8.178244]
[1724717708638,2.3397,2690.6,2690.1,0.04491275]
[1724717708957,10.77767845,2690.9,2690.4,3.71685]
[1724717709261,9.6197,2690.9,2690.4,3.71685]
[1724717709462,9.6197,2690.9,2690.5,0.04491275]
[1724717710182,2.3397,2690.9,2690.6,3.71652]
[1724717710461,2.3397,2690.9,2690.6,7.43308]
[1724717710669,2.3397,2690.9,2690.7,0.04491275]
[1724717711072,2.3135,2691.2,2690.7,0.11923734]
[1724717711270,2.3135,2691.2,2690.8,3.71628]
[1724717711423,2.3135,2691.2,2690.7,3.76140275]
[1724717711624,2.3135,2691.2,2690.7,3.71649]
[1724717711824,2.3135,2691.2,2690.8,0.11923349]
[1724717712068,2.3135,2691.2,2690.8,0.11923211]
[1724717712366,2.3135,2691.2,2690.8,0.04491275]
[1724717712548,2.3135,2691.2,2690.8,3.76126275]
[1724717713563,2.3135,2691.2,2690.8,0.04491275]
[1724717713767,2.3135,2691.1,2690.8,0.04491275]
[1724717713975,6.02947,2691.1,2690.4,4.460194]
[1724717714271,2.3135,2691.0,2690.9,0.04452566]
[1724717714564,6.02959,2691.0,2690.9,0.04459016]
[1724717714763,2.3135,2691.0,2690.5,6.71671]
[1724717714966,2.3135,2691.0,2690.9,0.04459016]
[1724717715172,2.3135,2691.0,2690.5,6.71671]
[1724717715327,2.3135,2691.0,2690.9,0.04459016]
[1724717715530,2.3135,2691.0,2690.5,6.71671]
[1724717715837,2.3135,2691.0,2690.9,0.04459016]
[1724717716043,2.3135,2691.0,2690.5,6.71671]
[1724717716260,2.3135,2691.0,2690.9,0.04461167]
[1724717716429,2.3135,2691.0,2690.5,6.71671]
[1724717716629,2.3135,2691.0,2690.9,0.04466184]
[1724717716860,2.3135,2691.0,2690.5,6.71671]
[1724717717060,2.3135,2691.0,2690.9,0.04466184]
[1724717717261,2.3135,2691.0,2690.5,6.71671]
[1724717717432,2.3135,2691.0,2690.9,0.04466184]
[1724717717628,2.3135,2691.0,2690.5,6.71671]
[1724717717828,2.3135,2691.0,2690.9,0.04466184]
[1724717718028,2.3135,2691.0,2690.5,6.71671]
[1724717718225,2.3135,2691.0,2690.9,0.04466184]
[1724717718424,2.3135,2691.0,2690.5,10.43341]
[1724717718642,2.3135,2691.0,2690.9,0.04466184]
[1724717718898,2.3135,2691.0,2690.5,10.43341]
[1724717719033,2.3135,2691.0,2690.9,0.04466184]
[1724717719479,2.3135,2691.0,2690.7,3.71648]
[1724717719648,2.3135,2691.0,2690.9,0.04466184]
[1724717719841,2.3135,2691.0,2690.8,0.04448265]
[1724717720030,2.3135,2691.0,2690.7,3.71648]
[1724717720225,2.3135,2691.0,2690.9,0.04448265]
[1724717720428,2.3135,2691.0,2690.7,3.71648]
[1724717720675,2.3135,2691.0,2690.9,0.04448265]
[1724717720858,2.3135,2691.0,2690.6,1.55344572]
[1724717721171,2.3135,2691.0,2690.6,4.95799776]
[1724717721345,2.3135,2691.0,2690.7,0.04448265]
[1724717722393,2.3135,2691.0,2690.8,0.04415295]
[1724717722759,2.3135,2691.0,2690.5,6.71664]
[1724717722992,2.3135,2691.0,2690.9,0.04415295]
[1724717723161,2.3135,2690.9,2690.5,3.0]
[1724717723495,2.3135,2690.9,2690.4,3.0]
[1724717723496,2.3135,2690.8,2690.4,3.0]
[1724717724219,2.3135,2690.8,2690.4,6.71689]
[1724717724371,2.3135,2690.8,2690.4,3.0]
[1724717724789,2.3135,2690.8,2690.2,11.09716]
[1724717724790,2.3135,2690.6,2690.2,11.09716]
[1724717725385,2.3135,2690.6,2689.8,3.71764]
[1724717725386,3.71694,2690.4,2689.8,3.71764]
[1724717725615,3.71694,2690.4,2689.5,3.71805]
[1724717725616,2.2795,2690.1,2689.5,3.71805]
[1724717725984,2.2795,2690.0,2689.5,3.71805]
[1724717726217,2.2795,2690.0,2689.5,7.43612]
[1724717727080,2.2795,2690.0,2689.6,3.71798]
[1724717727805,2.2795,2690.0,2689.7,3.71787]
[1724717728007,1.15797845,2690.2,2690.0,3.71744]
[1724717728008,2.2795,2690.2,2690.0,3.71744]
[1724717729391,3.43747845,2690.5,2690.0,3.71739]
[1724717729593,2.2795,2690.5,2690.0,3.71739]
[1724717729810,2.2795,2690.5,2690.0,7.43476]
[1724717730124,2.2795,2690.5,2690.1,1.11636843]
[1724717730287,3.43747845,2690.5,2690.1,1.11636843]
[1724717730487,2.2795,2690.5,2690.1,4.83368843]
[1724717731413,2.2795,2690.5,2690.2,0.04470496]
[1724717731734,2.2795,2690.5,2690.2,0.07563207]
[1724717731879,3.43747845,2690.5,2690.2,0.07563207]
[1724717732079,7.15426845,2690.5,2689.7,11.10892427]
[1724717732313,3.43747845,2690.3,2689.8,7.5796575]
[1724717732515,3.43747845,2690.3,2689.8,7.5796475]
[1724717733828,3.43747845,2690.3,2689.8,11.2973075]
[1724717734064,2.2795,2690.3,2689.8,7.5796475]
[1724717734483,2.2795,2690.3,2689.8,11.2973075]
[1724717734687,2.2795,2690.3,2689.8,7.5796475]
[1724717735307,3.43747845,2690.3,2689.9,1.49596475]
[1724717735508,2.2795,2690.3,2689.9,5.28905341]
[1724717735839,3.43747845,2690.3,2689.9,5.28905341]
[1724717740186,3.43747845,2690.4,2689.9,5.28896341]
[1724717740381,3.43747845,2690.4,2690.0,1.28043578]
[1724717740538,1.15797845,2690.3,2690.0,1.35641901]
[1724717740718,3.43747845,2690.4,2690.0,1.35641901]
[1724717740913,1.15797845,2690.3,2690.0,1.35641901]
[1724717742018,3.43747845,2690.4,2690.0,1.35641901]
[1724717743243,3.43747845,2690.4,2690.0,5.07388901]
[1724717744118,1.15797845,2690.3,2690.0,5.07388901]
[1724717744353,2.2795,2690.4,2690.0,5.07388901]
[1724717744354,3.43747845,2690.4,2690.0,5.07388901]
[1724717745263,3.43747845,2690.4,2690.0,1.35641901]
[1724717745471,1.15797845,2690.3,2690.0,1.35641901]
[1724717745767,1.15797845,2690.3,2690.1,0.56939437]
[1724717746069,1.15797845,2690.3,2689.9,1.49596475]
[1724717746215,5.99655,2690.3,2690.2,0.07598323]
[1724717746416,5.99655,2690.3,2689.8,6.71761]
[1724717746656,1.16412971,2690.1,2689.8,6.71761]
[1724717746856,1.16412971,2690.1,2689.8,8.499165]
[1724717747550,1.16412971,2690.2,2689.8,8.499165]
[1724717747951,1.16412971,2690.1,2689.8,8.499165]
[1724717748323,1.16412971,2690.2,2689.8,8.499165]
[1724717751741,3.44362971,2690.3,2689.8,8.499165]
[1724717751957,1.16412971,2690.2,2689.8,8.499165]
[1724717753026,3.44362971,2690.3,2689.8,8.499165]
[1724717753444,1.16412971,2690.2,2689.8,8.499165]
[1724717753678,3.44362971,2690.3,2689.8,8.499165]
[1724717753881,1.16412971,2690.2,2689.8,8.499165]
[1724717754046,1.16412971,2690.2,2689.8,10.05350038]
[1724717754229,3.44362971,2690.3,2689.8,10.05350038]
[1724717755077,5.26958096,2690.4,2690.0,1.55433538]
[1724717755078,2.71672067,2690.4,2690.0,1.55433538]
[1724717755280,1.16412971,2690.4,2690.0,1.55433538]
[1724717755831,1.16412971,2690.3,2690.0,1.55433538]
[1724717756181,1.16412971,2690.3,2689.9,1.42489374]
[1724717758007,3.60562971,2690.2,2689.8,3.0]
[1724717758162,1.16412971,2690.1,2689.8,3.0]
[1724717758543,3.60562971,2690.2,2689.8,3.0]
[1724717759093,3.60562971,2690.2,2689.8,6.71774]
[1724717760088,1.16412971,2690.1,2689.8,6.71774]
[1724717760440,3.60562971,2690.2,2689.8,6.71774]
[1724717760692,1.16412971,2690.1,2689.8,6.71774]
[1724717761341,1.16412971,2690.1,2689.9,0.07612663]
[1724717762146,3.60562971,2690.2,2689.9,0.07612663]
[1724717762542,1.16412971,2690.1,2689.9,0.07612663]
[1724717764054,1.16412971,2690.0,2689.9,0.07612663]
[1724717764785,1.16412971,2690.1,2689.9,0.07612663]
[1724717765704,1.16412971,2690.1,2689.9,3.79372663]
[1724717765864,1.16412971,2690.2,2690.1,3.71733]
[1724717766059,1.16555719,2690.3,2690.2,3.71719]
[1724717766299,1.16555719,2690.4,2690.3,3.71705]
[1724717766504,1.16555719,2690.4,2690.3,4.71598333]
[1724717766703,1.16555719,2690.5,2690.3,4.79204864]
[1724717767203,1.55259096,2690.6,2690.5,7.43356]
[1724717767204,1.16555719,2690.6,2690.5,7.43356]
[1724717767404,1.16555719,2690.8,2690.6,3.71664]
[1724717767605,1.16555719,2690.9,2690.6,3.71664]
[1724717767902,1.16555719,2690.9,2690.7,4.33611945]
[1724717768075,1.16555719,2691.0,2690.7,4.4120525]
[1724717768801,1.16555719,2690.9,2690.7,4.4120525]
[1724717769273,1.16555719,2691.0,2690.7,4.4120525]
[1724717770782,1.16555719,2691.1,2690.7,4.4120525]
[1724717770985,1.16555719,2691.0,2690.8,0.81286925]
[1724717771533,1.16555719,2691.0,2690.9,0.07593305]
[1724717772034,1.16555719,2691.0,2690.7,3.71647]
[1724717772227,1.16555719,2691.1,2690.9,0.07593305]
[1724717772533,1.16555719,2691.1,2690.7,3.71647]
[1724717772697,1.16555719,2691.1,2690.8,0.743303]
[1724717772905,1.55259096,2691.2,2691.0,0.07543841]
[1724717773112,1.55259096,2691.1,2690.7,3.71647]
[1724717773295,1.16499927,2691.1,2690.7,3.71647]
[1724717773491,1.16499927,2691.0,2690.7,3.71647]
[1724717773688,1.16499927,2691.0,2690.4,11.09683]
[1724717773947,1.16499927,2691.0,2690.5,3.0]
[1724717773948,3.60029927,2690.8,2690.5,3.0]
[1724717774087,1.16499927,2690.8,2690.5,3.0]
[1724717774634,1.16499927,2690.9,2690.5,3.0]
[1724717776010,1.16499927,2690.9,2690.5,6.71676]
[1724717776210,1.16499927,2690.9,2690.5,8.59801233]
[1724717776403,1.16499927,2690.9,2690.6,0.07518753]
[1724717776618,1.16499927,2690.9,2690.6,3.79180753]
[1724717776819,1.16499927,2691.0,2690.6,3.79180753]
[1724717777343,1.16499927,2691.0,2690.6,0.07518753]
[1724717779355,1.16499927,2690.9,2690.6,0.07518753]
[1724717781325,1.16499927,2691.0,2690.6,0.07518753]
[1724717781626,1.16499927,2691.0,2690.6,3.79181753]
[1724717782250,1.16499927,2690.9,2690.6,3.79181753]
[1724717782753,1.16499927,2691.0,2690.6,3.79181753]
[1724717783428,1.16499927,2690.9,2690.6,3.79181753]
[1724717783613,1.16499927,2690.9,2690.6,0.07518753]
[1724717784218,2.61758183,2690.9,2690.6,0.07518753]
[1724717784456,4.88149927,2690.7,2690.6,0.07518753]
[1724717784614,6.1518,2690.7,2690.6,0.07518753]
[1724717784808,7.70439096,2690.7,2690.4,7.38]
[1724717785152,1.16397406,2690.6,2690.4,7.38]
[1724717785356,2.77191982,2690.6,2690.4,7.38]
[1724717785551,1.16397406,2690.5,2690.4,7.38]
[1724717789557,1.16397406,2690.5,2690.1,3.71731]
[1724717789768,1.16397406,2690.6,2690.2,3.71719]
[1724717789944,1.16397406,2690.6,2690.2,4.460563]
[1724717790116,1.16397406,2690.7,2690.3,6.00855]
[1724717790655,1.16397406,2690.8,2690.3,6.00855]
[1724717791434,1.16397406,2690.8,2690.4,0.07556747]
[1724717791732,1.16397406,2690.8,2690.3,6.00855]
[1724717791933,1.16397406,2690.7,2690.3,6.00855]
[1724717792255,1.16397406,2690.7,2690.3,1.34559759]
[1724717792556,1.16397406,2690.7,2690.2,3.71711]
[1724717792557,1.16397406,2690.6,2690.2,3.71711]
[1724717792757,1.16397406,2690.6,2690.4,0.07556747]
[1724717792913,1.16397406,2690.6,2690.2,3.71711]
[1724717793116,6.02714,2690.6,2690.5,0.07556747]
[1724717793315,6.02714,2690.6,2690.0,3.71738]
[1724717793560,1.16405957,2690.5,2690.0,5.356268]
[1724717795323,1.16405957,2690.5,2690.0,3.71738]
[1724717795533,4.88104957,2690.4,2689.8,14.09764]
[1724717795733,7.19168957,2690.3,2689.9,3.0]
[1724717796167,3.71743,2690.1,2689.7,3.0]
[1724717796330,3.71784,2689.8,2689.2,3.71848]
[1724717796540,3.71784,2689.8,2689.0,6.01031]
[1724717796541,2.3105,2689.7,2689.0,6.01031]
[1724717796793,2.3105,2689.7,2689.0,3.71876]
[1724717796794,3.47455957,2689.7,2689.0,3.71876]
[1724717796957,3.47455957,2689.7,2689.1,1.109876]
[1724717797163,3.47455957,2689.7,2689.1,8.547236]
[1724717797436,2.3105,2689.7,2689.1,8.547236]
[1724717797731,2.3105,2689.7,2689.2,3.71857]
[1724717799376,2.3105,2689.7,2689.3,3.0]
[1724717800319,2.3105,2689.7,2689.3,4.1547126]
[1724717801923,2.3105,2689.7,2689.3,7.8731326]
[1724717804831,2.3105,2689.7,2689.3,11.5914926]
[1724717805651,2.3105,2689.7,2689.4,3.71826]
[1724717806445,2.3105,2689.7,2689.5,0.07638485]
[1724717807961,2.3105,2690.0,2689.5,4.9612066]
[1724717809035,2.3105,2690.0,2689.5,4.9617301]
[1724717809334,6.02821,2689.9,2689.5,0.07690835]
[1724717809552,3.71781,2689.8,2689.5,0.07690835]
[1724717809730,3.71781,2689.8,2689.3,3.0]
[1724717809731,6.0284,2689.7,2689.3,3.0]
[1724717809931,6.0284,2689.7,2689.6,0.07515561]
[1724717810136,6.0284,2689.7,2689.3,3.0]
[1724717810333,6.0284,2689.7,2689.6,0.07515561]
[1724717810577,6.0284,2689.7,2689.3,3.0]
[1724717811051,6.0284,2689.7,2689.4,0.07522017]
[1724717811449,3.71803,2689.6,2689.4,0.07522017]
[1724717811659,2.3105,2689.6,2688.6,3.71937]
[1724717811826,2.3105,2689.2,2688.7,3.79441017]
[1724717813124,6.02916,2689.2,2688.7,0.07522017]
[1724717813323,6.58356984,2689.2,2688.7,0.07522017]
[1724717816558,6.02916,2689.2,2688.7,0.07522017]
[1724717816743,6.02916,2689.2,2688.7,3.79447017]
[1724717820531,2.3105,2689.2,2688.7,3.79447017]
[1724717821581,6.02909,2689.2,2688.7,3.79447017]
[1724717823675,3.71874,2689.1,2688.7,0.07522017]
[1724717823884,3.71874,2689.1,2688.5,3.71947]
[1724717824036,6.02909,2689.2,2688.6,0.07562913]
[1724717824231,4.88209957,2689.6,2688.6,0.07562913]
[1724717824232,1.16405957,2689.6,2688.6,0.07562913]
[1724717824475,2.2896,2689.5,2688.8,6.01491588]
[1724717824685,2.2896,2689.5,2689.1,3.71864]
[1724717824891,2.2896,2689.5,2689.2,0.07562913]
[1724717829439,1.08898196,2689.5,2688.6,14.11031588]
[1724717829703,3.71865,2689.2,2688.3,13.38434]
[1724717829909,2.4232,2688.9,2688.0,11.10023]
[1724717830202,3.71919,2688.8,2688.0,11.10023]
[1724717830398,3.71919,2688.8,2688.1,3.71998]
[1724717830399,7.4384,2688.8,2688.1,3.71998]
[1724717830607,8.79759159,2688.8,2688.1,3.71998]
[1724717830771,5.07838159,2688.8,2688.1,3.71998]
[1724717832159,8.79758159,2688.8,2688.1,3.71998]
[1724717832970,5.07838159,2688.8,2688.1,3.71998]
[1724717833383,5.07838159,2688.8,2688.0,11.10023]
[1724717833384,5.07838159,2688.8,2688.2,3.71992]
[1724717833585,3.71879,2689.1,2688.4,3.71957]
[1724717833798,3.71862,2689.2,2688.3,3.80470912]
[1724717833799,3.71836,2689.4,2688.8,3.71911]
[1724717833995,2.4232,2689.4,2689.0,3.71878]
[1724717834683,6.14103,2689.8,2689.1,3.71858]
[1724717835514,3.71792,2689.7,2689.1,3.71858]
[1724717836017,3.71792,2689.7,2688.9,3.7189]
[1724717836219,3.71819,2689.5,2688.9,3.7189]
[1724717836515,3.71819,2689.5,2689.0,0.073012]
[1724717836818,6.14152,2689.4,2689.0,0.073012]
[1724717836998,2.4232,2689.4,2689.0,0.073012]
[1724717837171,2.4232,2689.4,2688.9,3.0]
[1724717837511,2.4232,2689.4,2688.9,6.71899]
[1724717837711,2.4232,2689.4,2689.0,0.073012]
[1724717838489,2.4232,2689.4,2689.0,3.791852]
[1724717841242,3.58773962,2689.4,2689.0,3.791852]
[1724717841733,3.58773962,2689.4,2689.0,0.073012]
[1724717841734,1.16453962,2689.3,2689.0,0.073012]
[1724717841881,4.88304962,2689.3,2689.0,0.073012]
[1724717842083,1.16453962,2689.2,2688.8,3.0]
[1724717842278,13.10928617,2689.2,2689.1,0.07308377]
[1724717842539,13.10928617,2689.2,2688.3,3.71978]
[1724717842540,3.71898,2689.0,2688.3,3.71978]
[1724717842687,4.88428359,2688.9,2688.3,3.71978]
[1724717842887,7.30748359,2688.9,2688.4,0.07308377]
[1724717843092,8.75969303,2688.9,2688.4,0.07308377]
[1724717843318,1.16529359,2688.8,2688.4,0.07308377]
[1724717843524,1.16529359,2688.7,2688.4,0.07308377]
[1724717843684,1.16529359,2688.7,2688.0,11.10015]
[1724717843685,1.16529359,2688.6,2688.0,11.10015]
[1724717843890,2.4232,2688.4,2688.1,0.07308377]
[1724717844107,2.4232,2688.4,2688.1,3.79315377]
[1724717845089,2.4232,2688.4,2688.1,0.07308377]
[1724717845734,4.88476359,2688.6,2688.1,0.07308377]
[1724717846236,3.57749359,2688.7,2688.1,0.07308377]
[1724717846402,2.4122,2688.7,2688.2,3.71988]
[1724717846995,2.4122,2688.7,2688.3,0.07308377]
[1724717846996,3.57749359,2688.7,2688.3,0.07308377]
[1724717847293,3.95319537,2688.7,2688.3,0.07308377]
[1724717847715,2.78790178,2688.7,2688.3,0.07308377]
[1724717848756,3.95319537,2688.7,2688.3,0.07308377]
[1724717848968,2.78790178,2688.7,2688.3,0.07308377]
[1724717849265,2.78790178,2688.7,2688.4,0.07308377]
[1724717849427,2.78790178,2688.7,2688.2,3.71992]
[1724717849752,2.4122,2688.7,2688.3,0.07308377]
[1724717850810,4.88449359,2688.8,2688.3,0.07308377]
[1724717852213,3.71956,2688.5,2688.0,11.10015]
[1724717852414,3.71984,2688.3,2688.1,0.07448329]
[1724717852615,2.4122,2688.2,2687.6,3.72069]
[1724717853030,2.4122,2688.2,2687.7,0.07448329]
[1724717854154,6.13216,2688.2,2687.7,0.07448329]
[1724717854668,7.38926184,2688.2,2687.7,0.07448329]
[1724717855133,7.38926184,2688.2,2687.7,0.07333572]
[1724717856573,3.7201,2688.1,2687.7,0.07333572]
[1724717858970,3.7201,2688.1,2687.5,3.72089]
[1724717859170,3.7201,2688.1,2687.8,0.07228541]
[1724717859315,4.09638685,2688.1,2687.5,3.72089]
[1724717859577,4.09638685,2688.1,2687.9,0.07228541]
[1724717859783,2.2956,2688.0,2687.3,10.38]
[1724717859982,2.2956,2688.0,2687.4,3.0]
[1724717860301,3.72053,2687.8,2687.4,3.0]
[1724717861008,7.44096,2687.9,2687.4,3.0]
[1724717861183,3.72045,2687.9,2687.4,3.0]
[1724717862783,3.72045,2687.9,2687.5,0.07228541]
[1724717863519,2.68849887,2688.0,2687.5,0.07228541]
[1724717863745,2.2956,2688.0,2687.5,0.07228541]
[1724717864628,2.2956,2688.0,2687.5,3.79316541]
[1724717867701,2.2956,2688.0,2687.6,3.72078]
[1724717868057,2.2956,2688.2,2687.7,0.07277378]
[1724717868539,2.2956,2688.2,2687.8,3.72047]
[1724717869191,2.2956,2688.2,2687.9,0.07277378]
[1724717869724,6.01557,2688.2,2687.9,0.07277378]
[1724717869898,7.717111,2688.2,2687.6,3.72072]
[1724717870097,7.717111,2688.2,2687.7,0.07288152]
[1724717871129,3.72018,2688.1,2687.7,0.07288152]
[1724717871312,2.2956,2688.0,2687.7,0.07288152]
[1724717871521,3.72044,2687.9,2687.4,3.0]
[1724717871831,3.72044,2687.9,2687.8,0.07285278]
[1724717872019,4.322044,2687.9,2687.4,3.0]
[1724717872202,3.72044,2687.9,2687.8,0.07285278]
[1724717872404,3.72044,2687.9,2687.4,6.72104]
[1724717872619,3.72044,2687.9,2687.8,0.07285278]
[1724717872940,2.2956,2688.0,2687.8,0.07285278]
[1724717873230,2.2956,2688.0,2687.6,3.72071]
[1724717873431,2.2956,2688.0,2687.9,0.07285278]
[1724717873635,2.2956,2688.0,2687.7,3.72064]
[1724717873832,2.2956,2688.0,2687.9,0.07285278]
[1724717874337,2.2956,2688.0,2687.7,3.72064]
[1724717874486,2.2956,2688.0,2687.9,0.07285278]
[1724717874707,2.2956,2688.0,2687.7,3.72064]
[1724717874948,2.2956,2688.0,2687.8,0.07285278]
[1724717875311,2.2956,2688.0,2687.7,3.72064]
[1724717875509,2.2956,2688.0,2687.8,0.07285278]
[1724717875711,2.2956,2688.0,2687.7,3.72064]
[1724717875910,2.2956,2688.0,2687.8,0.07285278]
[1724717876136,2.2956,2688.0,2687.7,3.72064]
[1724717876337,2.2956,2688.0,2687.9,0.07285278]
[1724717876546,2.2956,2688.0,2687.5,3.72081]
[1724717876753,2.2956,2688.0,2687.9,0.07285278]
[1724717876919,2.2956,2688.0,2687.5,3.72081]
[1724717877128,2.2956,2688.0,2687.9,0.07285278]
[1724717877304,2.2956,2688.0,2687.6,3.72078]
[1724717877508,2.2956,2688.0,2687.7,0.07282405]
[1724717878719,2.4786,2688.2,2687.7,3.79340405]
[1724717878907,3.71991,2688.3,2687.7,4.41755445]
[1724717879107,3.71991,2688.3,2687.7,8.13811445]
[1724717881232,3.71991,2688.3,2687.7,4.41753445]
[1724717881435,3.71991,2688.3,2687.7,8.13810445]
[1724717881854,9.7586,2688.4,2687.7,4.41753445]
[1724717882058,13.47828,2688.4,2687.9,3.72036]
[1724717882256,9.7586,2688.4,2687.9,3.72036]
[1724717882563,8.44529359,2688.7,2688.3,3.71982]
[1724717882862,3.64389359,2688.8,2688.3,3.71972]
[1724717883060,11.08225359,2688.8,2688.1,6.16807]
[1724717883231,3.71931,2688.7,2688.4,0.07282405]
[1724717883431,3.71931,2688.7,2688.1,3.71997]
[1724717883649,3.71931,2688.7,2688.5,0.07282405]
[1724717883856,3.71931,2688.7,2688.1,3.71997]
[1724717884032,3.71931,2688.7,2688.6,0.07282405]
[1724717884231,6.14821043,2688.7,2688.1,3.71997]
[1724717884435,4.88460359,2688.7,2688.6,0.07282405]
[1724717884701,7.36303359,2688.8,2688.1,7.43998]
[1724717884848,7.36303359,2688.8,2688.6,0.07282405]
[1724717885021,7.36303359,2688.8,2688.1,7.43998]
[1724717885336,1.16316482,2688.7,2688.2,3.7199]
[1724717885531,1.16316482,2688.7,2688.2,4.53671105]
[1724717886649,1.16316482,2688.6,2688.2,4.53671105]
[1724717887038,1.16316482,2688.6,2688.2,0.81681105]
[1724717887772,1.16316482,2688.5,2688.2,0.81681105]
[1724717888329,1.16316482,2688.5,2688.2,4.53675105]
[1724717889269,1.16316482,2688.5,2688.2,0.81681105]
[1724717889677,1.16316482,2688.5,2688.2,4.53675105]
[1724717890274,1.16316482,2688.5,2688.3,0.82567711]
[1724717890479,1.16316482,2688.5,2688.4,0.07249368]
[1724717890909,1.16471468,2688.5,2688.4,0.07249368]
[1724717891120,1.16471468,2688.5,2688.1,3.72001]
[1724717891287,1.16471468,2688.5,2688.2,0.07249368]
[1724717892230,1.16471468,2688.4,2688.2,0.07249368]
[1724717892440,3.57951468,2688.4,2688.2,0.07249368]
[1724717892741,3.57951468,2688.4,2688.0,3.0]
[1724717892901,3.57951468,2688.4,2688.3,0.07249368]
[1724717893106,3.57951468,2688.4,2688.0,3.0]
[1724717893292,3.57951468,2688.4,2688.1,0.07249368]
[1724717894825,3.57951468,2688.4,2688.1,3.79258368]
[1724717899695,3.57951468,2688.4,2688.1,7.51261368]
[1724717900352,3.57951468,2688.4,2688.1,0.07249368]
[1724717900353,1.16471468,2688.3,2688.1,0.07249368]
[1724717901422,4.67609249,2688.4,2688.1,0.07249368]
[1724717901423,4.28708238,2688.4,2688.1,0.07249368]
[1724717901640,3.57951468,2688.4,2688.1,3.79257368]
[1724717903357,1.16471468,2688.4,2688.1,3.79257368]
[1724717903669,1.16471468,2688.5,2688.3,3.71982]
[1724717903828,1.16471468,2688.6,2688.3,3.71982]
[1724717904029,1.16471468,2688.6,2688.4,0.07224948]
[1724717904226,1.16471468,2688.7,2688.4,3.21123381]
[1724717904481,1.16471468,2688.9,2688.6,3.73031588]
[1724717904644,1.16471468,2689.0,2688.9,3.71899]
[1724717904970,1.16471468,2689.2,2689.1,3.71871]
[1724717905188,1.16471468,2689.4,2689.2,3.71857]
[1724717905468,1.16471468,2689.6,2689.2,7.43703]
[1724717905666,1.16471468,2689.7,2689.2,7.43703]
[1724717905828,1.16471468,2689.7,2689.3,0.07188332]
[1724717906275,3.42761468,2689.8,2689.3,0.07188332]
[1724717906459,2.03460963,2689.7,2689.3,0.07188332]
[1724717907262,0.86989495,2689.7,2689.3,0.07188332]
[1724717907828,2.03460963,2689.7,2689.3,0.07188332]
[1724717908227,0.86989495,2689.7,2689.3,0.07188332]
[1724717908683,4.58777495,2689.7,2689.3,0.07188332]
[1724717908860,0.80153896,2689.6,2689.0,7.43753]
[1724717909065,2.2629,2689.5,2689.0,3.71876]
[1724717909483,2.2629,2689.5,2689.1,0.07156753]
[1724717910739,2.2629,2689.5,2689.1,3.79022753]
[1724717911280,2.2629,2689.7,2689.2,3.71855]
[1724717911683,2.2629,2689.7,2689.3,0.07093581]
[1724717914042,5.9808,2689.7,2689.3,0.07093581]
[1724717914455,7.06711847,2689.7,2689.3,0.07093581]
[1724717916853,7.06711847,2689.7,2689.1,3.71871]
[1724717917057,5.9808,2689.7,2689.1,3.71871]
[1724717917455,5.9808,2689.7,2689.2,0.07089993]
[1724717918461,2.2629,2689.7,2689.2,3.78943993]
[1724717919674,5.98081,2689.7,2689.2,3.78943993]
[1724717920071,7.06713047,2689.7,2689.2,0.07089993]
[1724717920287,3.71803,2689.6,2689.0,7.43754]
[1724717920459,5.98081,2689.7,2689.2,3.71856]
[1724717920663,1.16471468,2689.8,2689.2,6.04696]
[1724717920970,3.71775,2689.8,2689.3,0.07089993]
[1724717921165,7.27703468,2690.1,2689.6,3.71801]
[1724717921369,6.11232,2690.1,2689.6,3.71801]
[1724717921582,6.11232,2690.1,2689.7,0.07079949]
[1724717921786,9.82973,2690.1,2689.7,0.07079949]
[1724717922073,7.93975447,2690.1,2689.5,3.71815]
[1724717922279,11.65719447,2690.1,2689.6,0.07079949]
[1724717922479,3.71747,2690.0,2689.6,0.07079949]
[1724717922889,3.71762,2689.9,2689.6,0.07079949]
[1724717923262,3.71762,2689.9,2689.7,0.07079949]
[1724717923662,3.71762,2689.9,2689.8,0.07079949]
[1724717923863,4.97577366,2689.9,2689.4,3.7182]
[1724717924064,3.71762,2689.9,2689.4,3.7182]
[1724717924412,3.71762,2689.9,2689.5,0.07079949]
[1724717924903,3.71747,2690.0,2689.5,0.07079949]
[1724717925214,7.27702468,2690.1,2689.5,3.78894949]
[1724717925503,7.27702468,2690.1,2689.6,3.71802]
[1724717925701,3.71741,2690.1,2689.7,2.3284]